fUSD/lending_fUSD_20250213
["ID","MTS","AMOUNT","RATE_DAILY","PERIOD"]
[352982884,1739475049384,-2670.18,0.00013698,2]
[352982886,1739475049395,-500.0,0.00013698,2]
[352982888,1739475049406,-500.0,0.00013698,2]
[352982890,1739475049416,-783.68,0.00013698,2]
[352982892,1739475049427,-500.0,0.00013698,2]
[352982894,1739475049437,-500.0,0.00013698,2]
[352982896,1739475049448,-500.0,0.00013698,2]
[352982898,1739475049459,-500.0,0.00013698,2]
[352982900,1739475049473,-500.0,0.00013698,2]
[352982902,1739475049487,-500.0,0.00013698,2]
[352982904,1739475049498,-500.0,0.00013698,2]
[352982906,1739475049510,-500.0,0.00013698,2]
[352982908,1739475049521,-1121.82,0.00013698,2]
[352982910,1739475049532,-1548.28,0.00013698,2]
[352982912,1739475049543,-1244.33,0.00013698,2]
[352982914,1739475049553,-2668.94,0.00013698,2]
[352982916,1739475049564,-1777.99,0.00013698,2]
[352982918,1739475049576,-1985.8,0.00013698,2]
[352982920,1739475049586,-500.0,0.00013698,2]
[352982922,1739475049596,-2785.75,0.00013698,2]
[352982924,1739475049606,-500.0,0.00013698,2]
[352982926,1739475049617,-500.0,0.00013698,2]
[352982928,1739475049627,-2115.88,0.00013698,2]
[352982930,1739475049637,-500.0,0.00013698,2]
[352982932,1739475049648,-500.0,0.00013698,2]
[352982934,1739475049658,-1226.27,0.00013698,2]
[352982936,1739475049668,-500.0,0.00013698,2]
[352982938,1739475049678,-1238.48,0.00013698,2]
[352982940,1739475049689,-2525.46,0.00013698,2]
[352982942,1739475049699,-500.0,0.00013698,2]
[352982944,1739475049709,-500.0,0.00013698,2]
[352982946,1739475049719,-3166.11,0.00013698,2]
[352982948,1739475049729,-500.0,0.00013698,2]
[352982950,1739475049739,-1513.55,0.00013698,2]
[352982952,1739475049749,-500.0,0.00013698,2]
[352982954,1739475049759,-4385.52,0.00013698,2]
[352982956,1739475049770,-500.0,0.00013698,2]
[352982957,1739475049780,-500.0,0.00013698,2]
[352982959,1739475049790,-500.0,0.00013698,2]
[352982962,1739475049801,-983.29,0.00013698,2]
[352982964,1739475049811,-1240.73,0.00013698,2]
[352982966,1739475049822,-500.0,0.00013698,2]
[352982968,1739475049832,-2459.84,0.00013698,2]
[352982969,1739475049841,-2655.01,0.00013698,2]
[352982971,1739475049851,-228.811866,0.00013698,2]
[352982973,1739475049861,-500.0,0.00013698,2]
[352982975,1739475049871,-500.0,0.00013698,2]
[352982978,1739475049880,-500.0,0.00013698,2]
[352982980,1739475049890,-500.0,0.00013698,2]
[352982981,1739475049900,-500.0,0.00013698,2]
[352982984,1739475049910,-500.0,0.00013698,2]
[352982985,1739475049920,-2037.61,0.00013698,2]
[352982987,1739475049930,-5530.04,0.00013698,2]
[352982989,1739475049939,-577.99,0.00013698,2]
[352982991,1739475049949,-501.33860508,0.00013698,2]
[352982993,1739475049958,-500.0,0.00013698,2]
[352983010,1739475050113,-500.0,0.00013698,2]
[352983012,1739475050123,-866.54,0.00013698,2]
[352983014,1739475050134,-500.0,0.00013698,2]
[352983016,1739475050143,-500.0,0.00013698,2]
[352983018,1739475050153,-500.0,0.00013698,2]
[352983020,1739475050163,-899.93,0.00013698,2]
[352983022,1739475050173,-500.0,0.00013698,2]
[352983024,1739475050183,-2385.67,0.00013698,2]
[352983026,1739475050192,-327.99525277,0.00013698,2]
[352983028,1739475050202,-500.0,0.00013698,2]
[352983030,1739475050212,-2446.7,0.00013698,2]
[352983032,1739475050222,-3263.65,0.00013698,2]
[352983034,1739475050231,-500.0,0.00013698,2]
[352983036,1739475050241,-151.0,0.00013698,2]
[352983038,1739475050251,-946.97,0.00013698,2]
[352983040,1739475050260,-6174.71,0.00013698,2]
[352983042,1739475050270,-151.0,0.00013698,2]
[352983044,1739475050279,-1214.97,0.00013698,2]
[352983046,1739475050289,-599.62,0.00013698,2]
[352983048,1739475050299,-2027.08,0.00013698,2]
[352983050,1739475050309,-1650.21,0.00013698,2]
[352983052,1739475050318,-151.0,0.00013698,2]
[352983054,1739475050328,-341.24421545,0.00013698,2]
[352983056,1739475050338,-151.0,0.00013698,2]
[352983058,1739475050347,-5493.44,0.00013698,2]
[352983060,1739475050357,-502.70068354,0.00013698,2]
[352983062,1739475050366,-1211.61,0.00013698,2]
[352983064,1739475050375,-940.13,0.00013698,2]
[352983066,1739475050384,-500.0,0.00013698,2]
[352983068,1739475050394,-4125.45,0.00013698,2]
[352983070,1739475050404,-1075.510688,0.00013698,2]
[352983072,1739475050413,-500.0,0.00013698,2]
[352983074,1739475050422,-500.0,0.00013698,2]
[352983076,1739475050431,-4126.09,0.00013698,2]
[352983078,1739475050440,-500.0,0.00013698,2]
[352983080,1739475050449,-544.37,0.00013698,2]
[352983082,1739475050459,-3802.99,0.00013698,2]
[352983084,1739475050471,-500.0,0.00013698,2]
[352983086,1739475050481,-3347.0,0.00013698,2]
[352983088,1739475050491,-500.0,0.00013698,2]
[352983090,1739475050500,-774.19,0.00013698,2]
[352983092,1739475050511,-500.0,0.00013698,2]
[352983094,1739475050521,-809.66,0.00013698,2]
[352983096,1739475050530,-2939.99,0.00013698,2]
[352983098,1739475050540,-717.64,0.00013698,2]
[352983100,1739475050554,-2077.66,0.00013698,2]
[352983102,1739475050564,-2828.19,0.00013698,2]
[352983104,1739475050573,-2886.05,0.00013698,2]
[352983106,1739475050583,-500.0,0.00013698,2]
[352983108,1739475050592,-5356.84,0.00013698,2]
[352983110,1739475050603,-1618.43,0.00013698,2]
[352983112,1739475050612,-3235.78,0.00013698,2]
[352983114,1739475050622,-500.0,0.00013698,2]
[352983116,1739475050631,-500.0,0.00013698,2]
[352983118,1739475050640,-1540.895058,0.00013698,2]
[352983120,1739475050650,-500.0,0.00013698,2]
[352983122,1739475050659,-4316.27,0.00013698,2]
[352983124,1739475050669,-5036.59,0.00013698,2]
[352983126,1739475050678,-2371.41,0.00013698,2]
[352983127,1739475050688,-500.0,0.00013698,2]
[352983130,1739475050698,-371.94233925,0.00013698,2]
[352983132,1739475050707,-2004.58,0.00013698,2]
[352983133,1739475050716,-1936.09,0.00013698,2]
[352983136,1739475050727,-985.692821,0.00013698,2]
[352983138,1739475050737,-1131.94,0.00013698,2]
[352983140,1739475050747,-937.68,0.00013698,2]
[352983141,1739475050756,-502.4465916,0.00013698,2]
[352983144,1739475050765,-505.7234956,0.00013698,2]
[352983146,1739475050775,-2221.99,0.00013698,2]
[352983147,1739475050785,-738.62,0.00013698,2]
[352983149,1739475050794,-6171.14,0.00013698,2]
[352983151,1739475050804,-500.0,0.00013698,2]
[352983154,1739475050814,-1717.13,0.00013698,2]
[352983155,1739475050824,-500.0,0.00013698,2]
[352983158,1739475050833,-2000.21,0.00013698,2]
[352983160,1739475050843,-1348.69,0.00013698,2]
[352983162,1739475050853,-500.0,0.00013698,2]
[352983164,1739475050863,-500.0,0.00013698,2]
[352983166,1739475050873,-1114.91,0.00013698,2]
[352983168,1739475050883,-500.0,0.00013698,2]
[352983170,1739475050893,-2250.57,0.00013698,2]
[352983172,1739475050903,-500.0,0.00013698,2]
[352983174,1739475050912,-500.0,0.00013698,2]
[352983176,1739475050922,-971.57,0.00013698,2]
[352983178,1739475050931,-1336.768423,0.00013698,2]
[352983179,1739475050953,-500.0,0.00013698,2]
[352983180,1739475050970,-352.99107325,0.00013698,2]
[352983181,1739475050990,-500.0,0.00013698,2]
[352983182,1739475051010,-3900.58,0.00013698,2]
[352983183,1739475051026,-4350.9,0.00013698,2]
[352983184,1739475051045,-2258.94,0.00013698,2]
[352983185,1739475051067,-811.195997,0.00013698,2]
[352983186,1739475051086,-500.0,0.00013698,2]
[352983187,1739475051104,-689.33,0.00013698,2]
[352983188,1739475051121,-983.48,0.00013698,2]
[352983189,1739475051141,-1198.84,0.00013698,2]
[352983190,1739475051155,-397.471021,0.00013698,2]
[352983191,1739475051174,-500.0,0.00013698,2]
[352983192,1739475051187,-500.0,0.00013698,2]
[352983193,1739475051204,-397.471021,0.00013698,2]
[352983194,1739475051218,-5365.37,0.00013698,2]
[352983195,1739475051231,-397.471021,0.00013698,2]
[352983197,1739475051247,-500.0,0.00013698,2]
[352983199,1739475051262,-500.0,0.00013698,2]
[352983202,1739475051277,-500.0,0.00013698,2]
[352983205,1739475051295,-397.471021,0.00013698,2]
[352983207,1739475051310,-397.471021,0.00013698,2]
[352983210,1739475051325,-1649.95,0.00013698,2]
[352983212,1739475051341,-397.471021,0.00013698,2]
[352983215,1739475051355,-507.90261647,0.00013698,2]
[352983218,1739475051370,-1161.477646,0.00013698,2]
[352983221,1739475051389,-1161.477646,0.00013698,2]
[352983223,1739475051404,-1161.477646,0.00013698,2]
[352983225,1739475051419,-500.0,0.00013698,2]
[352983228,1739475051434,-1161.477646,0.00013698,2]
[352983231,1739475051449,-1161.477646,0.00013698,2]
[352983233,1739475051464,-500.0,0.00013698,2]
[352983236,1739475051481,-1161.477646,0.00013698,2]
[352983239,1739475051498,-707.54,0.00013698,2]
[352983241,1739475051515,-707.54,0.00013698,2]
[352983244,1739475051531,-707.54,0.00013698,2]
[352983246,1739475051547,-707.54,0.00013698,2]
[352983249,1739475051562,-1067.012239,0.00013698,2]
[352983252,1739475051578,-707.54,0.00013698,2]
[352983254,1739475051593,-537.48954745,0.00013698,2]
[352983257,1739475051608,-707.54,0.00013698,2]
[352983259,1739475051623,-1661.34,0.00013698,2]
[352983262,1739475051639,-500.0,0.00013698,2]
[352983264,1739475051653,-2641.12,0.00013698,2]
[352983267,1739475051669,-4439.72,0.00013698,2]
[352983270,1739475051684,-1527.53,0.00013698,2]
[352983272,1739475051700,-500.0,0.00013698,2]
[352983275,1739475051715,-500.0,0.00013698,2]
[352983278,1739475051731,-3972.1,0.00013698,2]
[352983280,1739475051746,-6727.14,0.00013698,2]
[352983283,1739475051762,-638.084319,0.00013698,2]
[352983286,1739475051778,-500.0,0.00013698,2]
[352983288,1739475051795,-500.0,0.00013698,2]
[352983291,1739475051810,-903.73,0.00013698,2]
[352983293,1739475051825,-1256.13,0.00013698,2]
[352983296,1739475051840,-500.0,0.00013698,2]
[352983299,1739475051855,-3601.34,0.00013698,2]
[352983301,1739475051870,-4448.06,0.00013698,2]
[352983304,1739475051884,-500.0,0.00013698,2]
[352983307,1739475051899,-501.61268735,0.00013698,2]
[352983309,1739475051914,-1608.2,0.00013698,2]
[352983312,1739475051929,-500.0,0.00013698,2]
[352983314,1739475051944,-1347.74,0.00013698,2]
[352983317,1739475051959,-500.0,0.00013698,2]
[352983319,1739475051974,-500.0,0.00013698,2]
[352983322,1739475051988,-4307.36,0.00013698,2]
[352983325,1739475052003,-500.0,0.00013698,2]
[352983327,1739475052018,-1728.2,0.00013698,2]
[352983329,1739475052032,-150.0,0.00013698,2]
[352983331,1739475052049,-500.0,0.00013698,2]
[352983333,1739475052064,-3369.76,0.00013698,2]
[352983335,1739475052078,-500.0,0.00013698,2]
[352983337,1739475052092,-500.0,0.00013698,2]
[352983339,1739475052107,-1047.06,0.00013698,2]
[352983341,1739475052121,-3046.15,0.00013698,2]
[352983343,1739475052136,-821.756448,0.00013698,2]
[352983345,1739475052150,-500.0,0.00013698,2]
[352983347,1739475052167,-694.85,0.00013698,2]
[352983349,1739475052182,-516.44,0.00013698,2]
[352983352,1739475052197,-150.0,0.00013698,2]
[352983354,1739475052211,-500.0,0.00013698,2]
[352983356,1739475052226,-5167.61,0.00013698,2]
[352983358,1739475052240,-3472.0,0.00013698,2]
[352983360,1739475052255,-5739.84,0.00013698,2]
[352983362,1739475052270,-500.0,0.00013698,2]
[352983365,1739475052286,-2692.01,0.00013698,2]
[352983367,1739475052300,-151.0,0.00013698,2]
[352983385,1739475052471,-500.0,0.00013698,2]
[352983389,1739475052547,-151.0,0.00013698,2]
[352983391,1739475052558,-151.0,0.00013698,2]
[352983393,1739475052568,-4280.0,0.00013698,2]
[352983394,1739475052578,-4071.84,0.00013698,2]
[352983396,1739475052587,-5540.57,0.00013698,2]
[352983398,1739475052596,-4613.96,0.00013698,2]
[352983400,1739475052605,-1755.49,0.00013698,2]
[352983401,1739475052614,-500.0,0.00013698,2]
[352983403,1739475052623,-648.52,0.00013698,2]
[352983405,1739475052632,-151.0,0.00013698,2]
[352983407,1739475052642,-500.0,0.00013698,2]
[352983408,1739475052652,-2979.72,0.00013698,2]
[352983410,1739475052661,-207.215949,0.00013698,2]
[352983412,1739475052671,-151.0,0.00013698,2]
[352983414,1739475052680,-151.0,0.00013698,2]
[352983415,1739475052689,-500.0,0.00013698,2]
[352983417,1739475052699,-1546.84,0.00013698,2]
[352983419,1739475052708,-500.0,0.00013698,2]
[352983421,1739475052718,-5417.0,0.00013698,2]
[352983422,1739475052727,-500.0,0.00013698,2]
[352983424,1739475052736,-151.0,0.00013698,2]
[352983426,1739475052746,-4857.67,0.00013698,2]
[352983427,1739475052755,-151.0,0.00013698,2]
[352983429,1739475052764,-2491.99,0.00013698,2]
[352983430,1739475052774,-2015.41,0.00013698,2]
[352983432,1739475052783,-500.0,0.00013698,2]
[352983434,1739475052795,-2318.33,0.00013698,2]
[352983436,1739475052804,-502.31690516,0.00013698,2]
[352983437,1739475052813,-500.0,0.00013698,2]
[352983439,1739475052823,-794.46,0.00013698,2]
[352983441,1739475052832,-503.86229,0.00013698,2]
[352983443,1739475052841,-500.0,0.00013698,2]
[352983445,1739475052851,-801.08,0.00013698,2]
[352983446,1739475052860,-4191.53,0.00013698,2]
[352983448,1739475052869,-500.0,0.00013698,2]
[352983450,1739475052879,-2304.68,0.00013698,2]
[352983452,1739475052889,-5634.82,0.00013698,2]
[352983453,1739475052898,-3695.91,0.00013698,2]
[352983455,1739475052908,-500.0,0.00013698,2]
[352983457,1739475052918,-7013.62,0.00013698,2]
[352983459,1739475052927,-500.0,0.00013698,2]
[352983461,1739475052938,-500.0,0.00013698,2]
[352983463,1739475052947,-200.90828201,0.00013698,2]
[352983465,1739475052956,-6386.13,0.00013698,2]
[352983467,1739475052966,-4656.79,0.00013698,2]
[352983469,1739475052976,-667.31,0.00013698,2]
[352983471,1739475052985,-1455.88,0.00013698,2]
[352983473,1739475052995,-4741.68,0.00013698,2]
[352983475,1739475053004,-500.0,0.00013698,2]
[352983477,1739475053013,-500.0,0.00013698,2]
[352983479,1739475053023,-247.17294009,0.00013698,2]
[352983481,1739475053032,-1601.24,0.00013698,2]
[352983483,1739475053043,-512.713647,0.00013698,2]
[352983485,1739475053052,-500.0,0.00013698,2]
[352983486,1739475053062,-500.0,0.00013698,2]
[352983488,1739475053071,-5576.37,0.00013698,2]
[352983490,1739475053080,-4482.65,0.00013698,2]
[352983492,1739475053090,-1856.19,0.00013698,2]
[352983494,1739475053099,-14453.63,0.00013698,2]
[352983496,1739475053110,-508.49,0.00013698,2]
[352983498,1739475053119,-1470.92,0.00013698,2]
[352983500,1739475053129,-559.61,0.00013698,2]
[352983502,1739475053139,-500.0,0.00013698,2]
[352983504,1739475053148,-5159.44,0.00013698,2]
[352983506,1739475053157,-644.209003,0.00013698,2]
[352983508,1739475053166,-13563.83,0.00013698,2]
[352983510,1739475053175,-550.50885313,0.00013698,2]
[352983512,1739475053184,-3051.16,0.00013698,2]
[352983514,1739475053194,-271.93482076,0.00013698,2]
[352983516,1739475053203,-5819.32,0.00013698,2]
[352983518,1739475053212,-609.3,0.00013698,2]
[352983520,1739475053222,-505.3321557,0.00013698,2]
[352983522,1739475053231,-402.334344,0.00013698,2]
[352983524,1739475053240,-151.0,0.00013698,2]
[352983525,1739475053249,-151.0,0.00013698,2]
[352983526,1739475053257,-241.146062,0.00013698,2]
[352983527,1739475053266,-5482.63,0.00013698,2]
[352983528,1739475053275,-500.0,0.00013698,2]
[352983529,1739475053284,-5682.07,0.00013698,2]
[352983530,1739475053293,-3140.09,0.00013698,2]
[352983531,1739475053302,-500.0,0.00013698,2]
[352983532,1739475053311,-500.0,0.00013698,2]
[352983533,1739475053320,-4902.14,0.00013698,2]
[352983534,1739475053328,-500.0,0.00013698,2]
[352983535,1739475053337,-500.0,0.00013698,2]
[352983536,1739475053346,-502.9,0.00013698,2]
[352983537,1739475053355,-4482.95,0.00013698,2]
[352983538,1739475053365,-7116.76,0.00013698,2]
[352983539,1739475053374,-4035.5,0.00013698,2]
[352983540,1739475053383,-438.711195,0.00013698,2]
[352983541,1739475053391,-917.22,0.00013698,2]
[352983542,1739475053400,-2875.07,0.00013698,2]
[352983543,1739475053409,-438.711195,0.00013698,2]
[352983544,1739475053419,-438.711195,0.00013698,2]
[352983545,1739475053428,-1818.26,0.00013698,2]
[352983546,1739475053437,-500.0,0.00013698,2]
[352983547,1739475053446,-3701.2,0.00013698,2]
[352983548,1739475053455,-438.711195,0.00013698,2]
[352983550,1739475053464,-4745.42,0.00013698,2]
[352983552,1739475053478,-5400.43,0.00013698,2]
[352983553,1739475053488,-438.711195,0.00013698,2]
[352983555,1739475053498,-4379.0,0.00013698,2]
[352983557,1739475053508,-438.711195,0.00013698,2]
[352983559,1739475053519,-7065.63,0.00013698,2]
[352983561,1739475053527,-3515.39,0.00013698,2]
[352983563,1739475053536,-500.0,0.00013698,2]
[352983565,1739475053546,-503.889883,0.00013698,2]
[352983567,1739475053557,-3128.49,0.00013698,2]
[352983569,1739475053568,-1600.83,0.00013698,2]
[352983571,1739475053577,-500.0,0.00013698,2]
[352983573,1739475053587,-500.0,0.00013698,2]
[352983575,1739475053597,-324.536157,0.00013698,2]
[352983577,1739475053606,-556.05892765,0.00013698,2]
[352983579,1739475053616,-500.0,0.00013698,2]
[352983580,1739475053625,-1315.3,0.00013698,2]
[352983581,1739475053635,-500.0,0.00013698,2]
[352983582,1739475053644,-500.0,0.00013698,2]
[352983583,1739475053654,-4301.87,0.00013698,2]
[352983584,1739475053664,-6974.62,0.00013698,2]
[352983585,1739475053673,-521.57638378,0.00013698,2]
[352983586,1739475053683,-4793.31,0.00013698,2]
[352983587,1739475053692,-6850.71,0.00013698,2]
[352983588,1739475053701,-500.0,0.00013698,2]
[352983589,1739475053711,-4375.28,0.00013698,2]
[352983590,1739475053721,-500.0,0.00013698,2]
[352983591,1739475053731,-2576.59,0.00013698,2]
[352983592,1739475053741,-2377.35,0.00013698,2]
[352983593,1739475053750,-500.0,0.00013698,2]
[352983594,1739475053760,-500.0,0.00013698,2]
[352983595,1739475053770,-500.0,0.00013698,2]
[352983596,1739475053779,-944.39,0.00013698,2]
[352983597,1739475053789,-500.0,0.00013698,2]
[352983598,1739475053799,-11994.19,0.00013698,2]
[352983599,1739475053809,-500.0,0.00013698,2]
[352983600,1739475053818,-500.0,0.00013698,2]
[352983601,1739475053828,-3180.17,0.00013698,2]
[352983602,1739475053838,-473.261478,0.00013698,2]
[352983603,1739475053847,-684.62,0.00013698,2]
[352983604,1739475053857,-500.0,0.00013698,2]
[352983605,1739475053866,-500.0,0.00013698,2]
[352983607,1739475053876,-280.670404,0.00013698,2]
[352983609,1739475053885,-505.6573369,0.00013698,2]
[352983611,1739475053895,-502.03543557,0.00013698,2]
[352983613,1739475053904,-151.0,0.00013698,2]
[352983615,1739475053913,-722.17,0.00013698,2]
[352983617,1739475053923,-9134.028274,0.00013698,2]
[352983619,1739475053933,-151.0,0.00013698,2]
[352983621,1739475053943,-9134.028274,0.00013698,2]
[352983623,1739475053952,-500.0,0.00013698,2]
[352983625,1739475053961,-772.21,0.00013698,2]
[352983627,1739475053970,-151.0,0.00013698,2]
[352983629,1739475053979,-1032.81,0.00013698,2]
[352983631,1739475053989,-9134.028274,0.00013698,2]
[352983633,1739475053998,-616.5,0.00013698,2]
[352983634,1739475054007,-500.0,0.00013698,2]
[352983637,1739475054017,-501.34269758,0.00013698,2]
[352983639,1739475054027,-500.0,0.00013698,2]
[352983641,1739475054040,-500.0,0.00013698,2]
[352983643,1739475054050,-9134.028274,0.00013698,2]
[352983645,1739475054059,-9134.028274,0.00013698,2]
[352983647,1739475054068,-500.0,0.00013698,2]
[352983649,1739475054077,-9134.028274,0.00013698,2]
[352983651,1739475054087,-500.0,0.00013698,2]
[352983653,1739475054096,-958.76,0.00013698,2]
[352983655,1739475054106,-500.0,0.00013698,2]
[352983656,1739475054115,-500.0,0.00013698,2]
[352983658,1739475054125,-500.0,0.00013698,2]
[352983660,1739475054134,-500.0,0.00013698,2]
[352983662,1739475054143,-3172.13,0.00013698,2]
[352983664,1739475054153,-500.0,0.00013698,2]
[352983666,1739475054162,-571.68455192,0.00013698,2]
[352983668,1739475054172,-152.385235,0.00013698,2]
[352983670,1739475054181,-500.0,0.00013698,2]
[352983672,1739475054190,-809.65,0.00013698,2]
[352983674,1739475054200,-500.0,0.00013698,2]
[352983676,1739475054210,-500.0,0.00013698,2]
[352983678,1739475054220,-4803.95,0.00013698,2]
[352983680,1739475054230,-500.0,0.00013698,2]
[352983682,1739475054239,-6137.61,0.00013698,2]
[352983684,1739475054249,-500.0,0.00013698,2]
[352983686,1739475054259,-500.0,0.00013698,2]
[352983688,1739475054268,-500.0,0.00013698,2]
[352983690,1739475054277,-4164.01,0.00013698,2]
[352983692,1739475054287,-500.0,0.00013698,2]
[352983694,1739475054297,-500.0,0.00013698,2]
[352983696,1739475054306,-4681.56,0.00013698,2]
[352983698,1739475054316,-500.0,0.00013698,2]
[352983700,1739475054325,-500.0,0.00013698,2]
[352983702,1739475054334,-500.0,0.00013698,2]
[352983704,1739475054344,-500.0,0.00013698,2]
[352983706,1739475054354,-500.0,0.00013698,2]
[352983708,1739475054364,-500.0,0.00013698,2]
[352983710,1739475054374,-1114.6,0.00013698,2]
[352983712,1739475054383,-520.86637,0.00013698,2]
[352983714,1739475054394,-500.0,0.00013698,2]
[352983716,1739475054404,-505.70910671,0.00013698,2]
[352983718,1739475054413,-1818.75,0.00013698,2]
[352983720,1739475054423,-1915.71,0.00013698,2]
[352983722,1739475054432,-500.0,0.00013698,2]
[352983724,1739475054442,-5450.9,0.00013698,2]
[352983726,1739475054451,-366.513499,0.00013698,2]
[352983728,1739475054461,-843.06,0.00013698,2]
[352983731,1739475054473,-500.0,0.00013698,2]
[352983733,1739475054483,-150.0,0.00013698,2]
[352983734,1739475054495,-500.0,0.00013698,2]
[352983737,1739475054516,-500.0,0.00013698,2]
[352983739,1739475054526,-585.01,0.00013698,2]
[352983741,1739475054536,-500.0,0.00013698,2]
[352983743,1739475054547,-507.39,0.00013698,2]
[352983745,1739475054561,-3804.92,0.00013698,2]
[352983747,1739475054572,-500.0,0.00013698,2]
[352983749,1739475054581,-2750.22,0.00013698,2]
[352983751,1739475054590,-502.64791289,0.00013698,2]
[352983753,1739475054600,-7315.22,0.00013698,2]
[352983754,1739475054609,-868.46,0.00013698,2]
[352983756,1739475054618,-1215.14,0.00013698,2]
[352983758,1739475054628,-1615.48,0.00013698,2]
[352983760,1739475054637,-545.37388413,0.00013698,2]
[352983762,1739475054647,-4215.54,0.00013698,2]
[352983764,1739475054656,-2402.62,0.00013698,2]
[352983766,1739475054665,-6028.5,0.00013698,2]
[352983767,1739475054675,-500.0,0.00013698,2]
[352983768,1739475054684,-913.88,0.00013698,2]
[352983769,1739475054693,-204.455092,0.00013698,2]
[352983770,1739475054703,-204.455092,0.00013698,2]
[352983771,1739475054712,-6328.65,0.00013698,2]
[352983772,1739475054723,-204.455092,0.00013698,2]
[352983773,1739475054734,-533.46,0.00013698,2]
[352983774,1739475054744,-2451.5,0.00013698,2]
[352983775,1739475054755,-1688.23,0.00013698,2]
[352983776,1739475054766,-500.0,0.00013698,2]
[352983777,1739475054775,-500.0,0.00013698,2]
[352983778,1739475054785,-204.455092,0.00013698,2]
[352983779,1739475054795,-851.74,0.00013698,2]
[352983780,1739475054805,-831.91,0.00013698,2]
[352983781,1739475054815,-204.455092,0.00013698,2]
[352983782,1739475054826,-204.455092,0.00013698,2]
[352983783,1739475054835,-500.0,0.00013698,2]
[352983784,1739475054845,-4656.88,0.00013698,2]
[352983785,1739475054855,-500.0,0.00013698,2]
[352983786,1739475054865,-715.55,0.00013698,2]
[352983787,1739475054874,-500.0,0.00013698,2]
[352983788,1739475054884,-720.55698,0.00013698,2]
[352983789,1739475054894,-500.0,0.00013698,2]
[352983790,1739475054905,-500.0,0.00013698,2]
[352983791,1739475054915,-500.0,0.00013698,2]
[352983792,1739475054926,-500.0,0.00013698,2]
[352983793,1739475054936,-500.0,0.00013698,2]
[352983794,1739475054945,-500.0,0.00013698,2]
[352983795,1739475054956,-341.76045518,0.00013698,2]
[352983796,1739475054966,-1950.56,0.00013698,2]
[352983797,1739475054976,-4132.85,0.00013698,2]
[352983798,1739475054986,-2053.83,0.00013698,2]
[352983799,1739475054996,-1145.89,0.00013698,2]
[352983800,1739475055006,-4586.99,0.00013698,2]
[352983816,1739475055147,-500.0,0.00013698,2]
[352983819,1739475055167,-1899.77,0.00013698,2]
[352983821,1739475055176,-743.43,0.00013698,2]
[352983823,1739475055186,-840.63,0.00013698,2]
[352983824,1739475055195,-500.0,0.00013699,2]
[352983827,1739475055205,-500.0,0.00013699,2]
[352983828,1739475055214,-500.0,0.00013699,2]
[352983830,1739475055223,-500.0,0.00013699,2]
[352983832,1739475055233,-4000.0,0.00013699,2]
[352983833,1739475055243,-280.632554,0.00013699,2]
[352983834,1739475055252,-280.632554,0.00013699,2]
[352983835,1739475055262,-280.632554,0.00013699,2]
[352983836,1739475055271,-280.632554,0.00013699,2]
[352983837,1739475055281,-280.632554,0.00013699,2]
[352983838,1739475055290,-280.632554,0.00013699,2]
[352983839,1739475055301,-280.632554,0.00013699,2]